bitfinex-derivatives/quotes_BTCF0:USTF0_20250318
["timestamp","ask_amount","ask_price","bid_price","bid_amount"]
[1742310432955,0.1543408,81612.0,81609.0,0.0612719]
[1742310433146,0.2839408,81612.0,81608.0,0.02893419]
[1742310433348,0.2521408,81612.0,81608.0,0.15148039]
[1742310433555,0.2521408,81612.0,81610.0,0.1225428]
[1742310433749,0.3833408,81612.0,81609.0,0.1225452]
[1742310434057,0.3270408,81612.0,81608.0,0.10683419]
[1742310434243,0.4582408,81612.0,81611.0,0.4833423]
[1742310434443,0.3270408,81612.0,81611.0,0.4833423]
[1742310435359,0.3290408,81612.0,81611.0,0.4833423]
[1742310435560,0.2790408,81612.0,81611.0,0.4833423]
[1742310435760,0.2790408,81612.0,81611.0,0.2738423]
[1742310435961,0.2800408,81612.0,81611.0,0.2738423]
[1742310436359,0.2041408,81612.0,81611.0,0.2738423]
[1742310436557,0.003,81612.0,81611.0,0.2738423]
[1742310437065,0.002,81612.0,81611.0,0.2748423]
[1742310437553,0.2000348,81616.0,81614.0,0.1225377]
[1742310437554,0.1225364,81615.0,81614.0,0.1225377]
[1742310437749,0.4444339,81619.0,81615.0,0.0612676]
[1742310437949,0.3669339,81619.0,81618.0,0.4833317]
[1742310438158,0.3669339,81619.0,81618.0,0.1225317]
[1742310438354,0.3669339,81619.0,81618.0,0.1991317]
[1742310439162,0.40328506,81624.0,81620.0,0.0612638]
[1742310439366,0.40328506,81624.0,81618.0,0.1378658]
[1742310439367,0.40328506,81624.0,81623.0,0.4833242]
[1742310439662,0.40328506,81624.0,81623.0,0.6145242]
[1742310439857,0.40328506,81624.0,81623.0,0.7664242]
[1742310440649,0.40428506,81624.0,81623.0,0.7664242]
[1742310441147,0.0001838,81632.0,81631.0,0.1225122]
[1742310441362,0.077,81641.0,81640.0,0.1224987]
[1742310441558,0.17407314,81651.0,81645.0,0.0612451]
[1742310441751,0.077,81648.0,81647.0,0.0612441]
[1742310441952,0.077,81648.0,81647.0,0.4220441]
[1742310442360,0.077,81648.0,81647.0,0.44976353]
[1742310442663,0.1564,81648.0,81647.0,0.44976353]
[1742310442867,0.2788867,81648.0,81647.0,0.44976353]
[1742310443162,0.2788867,81648.0,81647.0,0.45889952]
[1742310443352,0.2838867,81648.0,81647.0,0.45889952]
[1742310443865,0.1614,81648.0,81647.0,0.45889952]
[1742310444161,0.005,81648.0,81647.0,0.45889952]
[1742310444358,0.009,81648.0,81647.0,0.45889952]
[1742310445064,0.009,81648.0,81647.0,0.08896353]
[1742310445263,0.1314867,81648.0,81647.0,0.08896353]
[1742310445563,0.2044867,81648.0,81647.0,0.08896353]
[1742310445778,0.2803867,81648.0,81647.0,0.08896353]
[1742310445963,0.1224972,81641.0,81640.0,0.3608]
[1742310446149,0.1224972,81641.0,81640.0,0.4832957]
[1742310446552,0.2733972,81641.0,81640.0,0.4832957]
[1742310446952,0.2733972,81641.0,81640.0,0.63359604]
[1742310447366,0.2753972,81641.0,81640.0,0.63359604]
[1742310448071,0.2753972,81641.0,81640.0,0.51110024]
[1742310449061,0.2753972,81641.0,81640.0,0.15030024]
[1742310449260,0.2763972,81641.0,81640.0,0.15030024]
[1742310449565,0.1224987,81640.0,81639.0,0.122684]
[1742310450163,0.3222987,81640.0,81639.0,0.122684]
[1742310450368,0.3222987,81640.0,81639.0,0.0001838]
[1742310450369,0.2763987,81640.0,81639.0,0.0001838]
[1742310450562,0.2763987,81640.0,81612.0,0.0612698]
[1742310450563,0.84872,81640.0,81616.0,0.0612653]
[1742310450775,0.1225347,81617.0,81616.0,0.1837919]
[1742310451066,0.1225347,81617.0,81616.0,0.21231294]
[1742310451256,0.1225347,81617.0,81616.0,0.39610654]
[1742310451457,0.1225347,81617.0,81616.0,0.27357844]
[1742310451669,0.2791347,81617.0,81616.0,0.27357844]
[1742310452368,0.2791347,81617.0,81616.0,0.15105184]
[1742310453155,0.1566,81617.0,81616.0,0.51185184]
[1742310453563,0.0001838,81625.0,81624.0,0.1225227]
[1742310453770,0.122705,81625.0,81624.0,0.1225227]
[1742310453960,0.122705,81625.0,81624.0,0.2690227]
[1742310454155,0.279305,81625.0,81624.0,0.2690227]
[1742310454760,0.280305,81625.0,81624.0,0.0722]
[1742310454961,0.280305,81625.0,81604.0,0.0612758]
[1742310454962,0.1225317,81619.0,81618.0,0.1225248]
[1742310455454,0.2773317,81619.0,81618.0,0.18379]
[1742310455756,0.0423,81619.0,81618.0,0.33419]
[1742310456065,0.0018638,81625.0,81624.0,0.1225227]
[1742310456251,0.0011838,81625.0,81624.0,0.2729227]
[1742310456455,0.0011838,81625.0,81624.0,0.6337227]
[1742310456866,0.0011838,81625.0,81624.0,0.2729227]
[1742310457170,0.0001838,81625.0,81624.0,0.6337227]
[1742310457554,0.0001838,81625.0,81624.0,0.7648427]
[1742310457962,0.0011838,81625.0,81624.0,0.2729227]
[1742310458463,0.123705,81625.0,81624.0,0.2729227]
[1742310458668,0.0011838,81625.0,81624.0,0.2729227]
[1742310458863,0.1923651,81647.0,81641.0,0.1224972]
[1742310459056,0.1923651,81647.0,81636.0,0.0612523]
[1742310459057,0.1349432,81649.0,81645.0,0.0612451]
[1742310459257,0.0737,81649.0,81648.0,0.1224867]
[1742310459458,0.2583224,81653.0,81652.0,0.1224792]
[1742310459660,0.2583224,81653.0,81652.0,0.2679792]
[1742310459661,0.1483,81653.0,81652.0,0.2679792]
[1742310459852,0.2707792,81653.0,81652.0,0.2679792]
[1742310460567,0.2707792,81653.0,81652.0,0.26965521]
[1742310461164,0.3026792,81653.0,81652.0,0.26965521]
[1742310461365,0.2707792,81653.0,81652.0,0.26965521]
[1742310461565,0.3707792,81653.0,81652.0,0.26965521]
[1742310462067,0.3757792,81653.0,81652.0,0.26965521]
[1742310462271,0.3757792,81653.0,81652.0,0.19575521]
[1742310462466,0.3757792,81653.0,81652.0,0.12415521]
[1742310462769,0.4257792,81653.0,81652.0,0.00167601]
[1742310463169,0.3718792,81653.0,81652.0,0.12415671]
[1742310463468,0.4257792,81653.0,81652.0,0.00167601]
[1742310463775,0.4297792,81653.0,81652.0,0.00167601]
[1742310464073,0.4297792,81653.0,81652.0,0.12415671]
[1742310464267,0.3616792,81653.0,81652.0,0.00167601]
[1742310464573,0.3616792,81653.0,79907.0,0.37689996]
[1742310464574,0.1224912,81645.0,81641.0,0.122497]
[1742310464777,0.1649912,81645.0,81644.0,0.1226753]
[1742310465067,0.2746912,81645.0,81644.0,0.1226753]
[1742310465268,0.1522,81645.0,81644.0,0.1226753]
[1742310465461,0.1224827,81651.0,81650.0,0.0612418]
[1742310465657,0.2746827,81651.0,81650.0,0.0612418]
[1742310467068,0.2756827,81651.0,81650.0,0.06291781]
[1742310467868,0.1532,81651.0,81650.0,0.06291781]
[1742310468066,0.3608,81662.0,81650.0,0.06291781]
[1742310468067,0.0791,81669.0,81658.0,0.1224717]
[1742310468292,0.1467,81664.0,81660.0,0.4832687]
[1742310468777,0.13108,81677.0,81676.0,0.1224447]
[1742310468979,0.0748,81677.0,81676.0,0.1224447]
[1742310469271,0.0612165,81684.0,81683.0,0.1224327]
[1742310469469,0.1331165,81684.0,81683.0,0.1224327]
[1742310470077,0.1649165,81684.0,81683.0,0.12410871]
[1742310470383,0.2381165,81684.0,81683.0,0.12410871]
[1742310470564,0.3168165,81684.0,81683.0,0.12410871]
[1742310470771,0.2486165,81684.0,81683.0,0.12410871]
[1742310471074,0.3218165,81684.0,81683.0,0.12410871]
[1742310471573,0.3218165,81684.0,81683.0,0.00167601]
[1742310471774,0.3718165,81684.0,81683.0,0.12411021]
[1742310472172,0.3718165,81684.0,81683.0,0.00167601]
[1742310472374,0.3036165,81684.0,81683.0,0.00167601]
[1742310472569,0.11986331,81677.0,81676.0,0.02452116]
[1742310472770,0.21986331,81677.0,81676.0,0.1224447]
[1742310473070,0.36576331,81677.0,81676.0,0.1224447]
[1742310473579,0.30796331,81677.0,81676.0,0.1224447]
[1742310473778,0.37076331,81677.0,81676.0,0.1224447]
[1742310474174,0.37576331,81677.0,81676.0,0.1224447]
[1742310474367,0.37576331,81677.0,81676.0,0.14788996]
[1742310476679,0.1224447,81676.0,81675.0,0.00018369]
[1742310476887,0.6332447,81676.0,81675.0,0.02553871]
[1742310477081,0.7106447,81676.0,81675.0,0.00018369]
[1742310477576,0.2155023,81662.0,81661.0,0.1224667]
[1742310477777,0.2837023,81662.0,81661.0,0.1224667]
[1742310478176,0.2155023,81662.0,81661.0,0.1480401]
[1742310478380,0.1224687,81660.0,81659.0,0.00064]
[1742310478683,0.1543687,81660.0,81659.0,0.00064]
[1742310478882,0.3746687,81660.0,81659.0,0.00064]
[1742310479073,0.3746687,81660.0,81659.0,0.1224702]
[1742310479474,0.131,81664.0,81661.0,0.1224672]
[1742310479676,0.131,81664.0,81663.0,0.1224642]
[1742310479977,0.0612252,81673.0,81667.0,0.1224582]
[1742310480172,0.1224538,81670.0,81667.0,0.1957582]
[1742310480372,0.1224627,81664.0,81663.0,0.00244711]
[1742310480578,0.2224627,81664.0,81663.0,0.00244711]
[1742310480785,0.4316627,81664.0,81663.0,0.00244711]
[1742310481084,0.3316627,81664.0,81663.0,0.00244711]
[1742310481283,0.3316627,81664.0,81663.0,0.12491131]
[1742310481586,0.007,81664.0,81663.0,0.12491131]
[1742310481777,0.00018369,81668.0,81667.0,0.1224582]
[1742310481978,0.11080921,81677.0,81676.0,0.1224447]
[1742310482171,0.0612096,81694.0,81693.0,0.0612088]
[1742310482479,0.1836326,81692.0,81691.0,0.1224208]
[1742310483076,0.2613326,81692.0,81691.0,0.12486791]
[1742310483385,0.1389104,81692.0,81691.0,0.30286386]
[1742310483584,0.1224176,81695.0,81694.0,0.1836229]
[1742310483976,0.2001176,81695.0,81694.0,0.1836229]
[1742310484172,0.2717176,81695.0,81694.0,0.18607001]
[1742310484473,0.2717176,81695.0,81694.0,0.00244711]
[1742310484679,0.1224207,81692.0,81691.0,0.00896215]
[1742310484880,0.1224327,81684.0,81683.0,0.00018369]
[1742310485074,0.4832327,81684.0,81683.0,0.02516501]
[1742310485271,0.6381327,81684.0,81683.0,0.12261789]
[1742310485480,0.6381327,81684.0,81683.0,0.00018369]
[1742310485687,0.6381327,81684.0,81683.0,0.0256446]
[1742310485886,0.6381327,81684.0,81683.0,0.12261789]
[1742310486086,0.7381327,81684.0,81683.0,0.12261789]
[1742310486383,0.3773327,81684.0,81683.0,0.12261789]
[1742310486589,0.3773327,81684.0,81683.0,0.19571789]
[1742310486791,0.4303327,81684.0,81683.0,0.1969165]
[1742310486986,0.7911327,81684.0,81683.0,0.0013823]
[1742310487190,0.7911327,81684.0,81661.0,0.1922335]
[1742310487191,0.0612232,81675.0,81661.0,0.122466]
[1742310487484,0.1224657,81662.0,81661.0,0.02535294]
[1742310487687,0.1724687,81660.0,81653.0,0.4832781]
[1742310487886,0.1724687,81660.0,81654.0,0.0769]
[1742310488088,0.1724687,81660.0,81657.0,0.1224721]
[1742310488281,0.3144687,81660.0,81659.0,1.03736182]
[1742310488685,0.1934687,81660.0,81659.0,1.18716182]
[1742310489087,0.1904687,81660.0,81659.0,1.18716182]
[1742310489279,0.1904687,81660.0,81659.0,1.19016182]
[1742310489693,0.1904687,81660.0,81659.0,1.19316182]
[1742310490284,0.1904687,81660.0,81659.0,1.06769162]
[1742310490585,0.2614687,81660.0,81659.0,1.06769162]
[1742310490777,0.2614687,81660.0,81659.0,0.91789162]
[1742310491381,0.2614687,81660.0,81659.0,1.04036182]
[1742310491889,0.2614687,81660.0,81659.0,1.11746182]
[1742310492083,0.2624687,81660.0,81659.0,1.19426182]
[1742310492283,0.3624687,81660.0,81659.0,1.07179162]
[1742310492478,0.3614687,81660.0,81659.0,1.07179162]
[1742310492682,0.3634687,81660.0,81659.0,1.19126182]
[1742310493189,0.3614687,81660.0,81659.0,1.19126182]
[1742310493394,0.3614687,81660.0,81659.0,1.06879162]
[1742310493395,0.3634687,81660.0,81659.0,1.06879162]
[1742310493787,0.3614687,81660.0,81659.0,1.19126182]
[1742310493994,0.3624687,81660.0,81659.0,1.19126182]
[1742310494396,0.3644687,81660.0,81659.0,1.19126182]
[1742310494595,0.3644687,81660.0,81659.0,0.91489162]
[1742310494792,0.4144687,81660.0,81659.0,0.91489162]
[1742310494990,0.4124687,81660.0,81659.0,0.91489162]
[1742310495198,0.4144687,81660.0,81659.0,0.91489162]
[1742310495782,0.1224762,81655.0,81646.0,0.0612445]
[1742310495995,0.4832807,81652.0,81643.0,0.02461421]
[1742310496198,0.4832807,81652.0,81651.0,2.773e-05]
[1742310496496,0.1224942,81643.0,81641.0,0.88988]
[1742310496694,0.3272957,81642.0,81641.0,0.88988]
[1742310496997,0.1837495,81641.0,81640.0,0.1224976]
[1742310497198,0.2598495,81641.0,81640.0,0.1958976]
[1742310497393,0.3327495,81641.0,81640.0,0.1958976]
[1742310497784,0.3327495,81641.0,81640.0,0.22052436]
[1742310498389,0.3327495,81641.0,81640.0,0.09802676]
[1742310498590,0.3337495,81641.0,81640.0,0.22052546]
[1742310499396,0.3347495,81641.0,81640.0,0.22052546]
[1742310499601,0.3347495,81641.0,81640.0,0.29262546]
[1742310500099,0.1837631,81634.0,81632.0,0.00018369]
[1742310500291,0.1225092,81633.0,81632.0,0.19939409]
[1742310500691,0.1225092,81633.0,81632.0,0.00018369]
[1742310500692,0.1725092,81633.0,81632.0,0.00018369]
[1742310500903,0.1725092,81633.0,81632.0,0.12269439]
[1742310501092,0.2146092,81633.0,81632.0,0.12269439]
[1742310501287,0.2044092,81633.0,81632.0,0.19939439]
[1742310501501,0.2147092,81633.0,81632.0,0.30074565]
[1742310501702,0.2157092,81633.0,81632.0,0.30074565]
[1742310501899,0.2235092,81633.0,81632.0,0.30074565]
[1742310502101,0.1657092,81633.0,81632.0,0.30074565]
[1742310502292,0.001,81633.0,81632.0,0.30074565]
[1742310502491,0.1646092,81633.0,81632.0,0.30074565]
[1742310503095,0.0612499,81643.0,81642.0,0.1837397]
[1742310503401,0.3568441,81643.0,81642.0,0.1837397]
[1742310503698,0.51388369,81649.0,81648.0,0.1224867]
[1742310504090,0.56816889,81649.0,81648.0,0.2715867]
[1742310504504,0.63636889,81649.0,81648.0,0.2715867]
[1742310504796,0.51388369,81649.0,81648.0,0.2715867]
[1742310505002,0.42388369,81649.0,81648.0,0.2715867]
[1742310505201,0.54636889,81649.0,81648.0,0.2715867]
[1742310505587,0.63636889,81649.0,81648.0,0.2715867]
[1742310505805,0.54736889,81649.0,81648.0,0.2715867]
[1742310505988,0.00118369,81649.0,81648.0,0.2715867]
[1742310506307,0.00318369,81649.0,81648.0,0.2715867]
[1742310506690,0.15746889,81649.0,81648.0,0.2715867]
[1742310506910,0.22566889,81649.0,81648.0,0.2715867]
[1742310507104,0.1224882,81647.0,81646.0,0.0612448]
[1742310507400,0.1646882,81647.0,81646.0,0.0612448]
[1742310507706,0.1648882,81647.0,81646.0,0.0612448]
[1742310508003,0.1224882,81647.0,81646.0,0.2138448]
[1742310508209,0.2224882,81647.0,81646.0,0.2138448]
[1742310508405,0.1543882,81647.0,81646.0,0.2138448]
[1742310508698,0.2224882,81647.0,81646.0,0.2138448]
[1742310508900,0.002,81647.0,81646.0,0.5746448]
[1742310510205,0.1244882,81647.0,81646.0,0.5746448]
[1742310510502,0.1562882,81647.0,81646.0,0.2138448]
[1742310510710,0.002,81647.0,81646.0,0.2138448]
[1742310512395,0.001,81647.0,81646.0,0.2158448]
[1742310512798,0.00018369,81649.0,81648.0,0.1224867]
[1742310513001,0.00018369,81649.0,81648.0,0.2689867]
[1742310513508,0.3608,81663.0,81662.0,0.1224657]
[1742310513893,0.3608,81663.0,81662.0,0.2689657]
[1742310514307,0.3608,81676.0,81670.0,0.0612268]
[1742310514509,0.3608,81676.0,81673.0,0.1224462]
[1742310514510,0.1724492,81674.0,81673.0,0.1224462]
[1742310514694,0.1397234,81675.0,81673.0,0.1224462]
[1742310514695,0.1534,81675.0,81673.0,0.6056939]
[1742310515005,0.07270149,81696.0,81695.0,0.1224163]
[1742310515507,0.0612076,81696.0,81695.0,0.1224163]
[1742310515910,0.0612076,81696.0,81695.0,0.14721294]
[1742310516210,0.1224222,81691.0,81690.0,0.1224228]
[1742310516915,0.1224222,81691.0,81690.0,0.14752073]
[1742310517505,0.1224222,81691.0,81690.0,0.02509793]
[1742310517700,0.1224267,81688.0,81687.0,0.00018369]
[1742310517915,0.3033867,81688.0,81687.0,0.12261189]
[1742310518606,0.5028867,81688.0,81687.0,0.12261189]
[1742310518803,0.4528867,81688.0,81687.0,0.12261189]
[1742310519116,0.4950867,81688.0,81687.0,0.12261189]
[1742310519311,0.4764867,81688.0,81687.0,0.12261189]
[1742310519502,0.4794867,81688.0,81687.0,0.12261189]
[1742310519704,0.2045,81688.0,81687.0,0.12261189]
[1742310520007,0.0838,81688.0,81687.0,0.19991189]
[1742310520208,0.0838,81688.0,81687.0,0.27511189]
[1742310520818,0.2062267,81688.0,81687.0,0.27511189]
[1742310521004,0.0838,81688.0,81687.0,0.27511189]
[1742310522212,0.1921648,81700.0,81696.0,0.1836184]
[1742310522411,0.1959118,81698.0,81697.0,0.2591199]
[1742310523514,0.2674118,81698.0,81697.0,0.2591199]
[1742310523812,0.145,81698.0,81697.0,0.6199199]
[1742310524214,0.15,81698.0,81697.0,0.6199199]
[1742310524716,0.25,81698.0,81697.0,0.6199199]
[1742310525213,0.15,81698.0,81697.0,0.6199199]
[1742310525616,0.0785,81698.0,81697.0,0.6199199]
[1742310525812,0.00018369,81704.0,81703.0,0.1224043]
[1742310526320,0.00018369,81704.0,81703.0,0.1977043]
[1742310526619,0.0719,81708.0,81707.0,0.1223983]
[1742310526620,0.1942968,81708.0,81707.0,0.1223983]
[1742310526820,0.2942968,81708.0,81707.0,0.1223983]
[1742310527006,0.1224088,81700.0,81699.0,0.1836127]
[1742310527407,0.2224088,81700.0,81699.0,0.1836127]
[1742310527607,0.2317088,81700.0,81699.0,0.1836127]
[1742310527812,0.2999088,81700.0,81699.0,0.1836127]
[1742310528008,0.3761088,81700.0,81699.0,0.1836127]
[1742310528513,0.3081088,81700.0,81699.0,0.1836127]
[1742310528825,0.2761088,81700.0,81699.0,0.1836127]
[1742310529327,0.3761088,81700.0,81699.0,0.0612051]
[1742310529520,0.3194088,81700.0,81699.0,0.0612051]
[1742310529817,0.3771088,81700.0,81699.0,0.0612051]
[1742310530019,0.1547,81700.0,81699.0,0.0612051]
[1742310530218,0.0795,81700.0,81699.0,0.1327051]
[1742310531010,0.002,81700.0,81699.0,0.1327051]
[1742310531907,0.001,81700.0,81699.0,0.1327051]
[1742310532109,0.003,81700.0,81699.0,0.1327051]
[1742310532513,0.001,81700.0,81699.0,0.1327051]
[1742310532717,0.001,81700.0,81699.0,0.2098051]
[1742310533019,0.1234088,81700.0,81699.0,0.2098051]
[1742310533316,0.2234088,81700.0,81699.0,0.2098051]
[1742310533519,0.254,81700.0,81699.0,0.2098051]
[1742310533818,0.154,81700.0,81699.0,0.2098051]
[1742310534223,0.3764088,81700.0,81699.0,0.1327051]
[1742310534522,0.2764088,81700.0,81699.0,0.1327051]
[1742310534713,0.2764088,81700.0,81699.0,0.2056051]
[1742310535843,0.2774088,81700.0,81699.0,0.2056051]
[1742310536717,0.3774088,81700.0,81699.0,0.2056051]
[1742310536915,0.0794,81700.0,81699.0,0.2056051]
[1742310537514,0.00018317,81708.0,81706.0,0.1223998]
[1742310537816,7e-08,81708.0,81707.0,0.7035983]
[1742310538621,7e-08,81708.0,81707.0,0.5563983]
[1742310539126,7e-08,81708.0,81701.0,0.1224064]
[1742310539127,0.1224058,81702.0,81701.0,0.1224064]
[1742310539428,0.27949897,81708.0,81704.0,0.0612008]
[1742310539612,0.13239897,81708.0,81707.0,0.1223983]
[1742310539920,0.13539897,81708.0,81707.0,0.1223983]
[1742310540424,0.13339897,81708.0,81707.0,0.1223983]
[1742310540811,0.07220007,81708.0,81707.0,0.1223983]
[1742310541021,0.07220007,81708.0,81707.0,0.2678983]
[1742310541725,0.00100007,81708.0,81707.0,0.3987383]
[1742310541919,0.1223916,81712.0,81711.0,0.061196]
[1742310542524,0.1223916,81712.0,81711.0,0.421996]
[1742310542724,0.1223916,81712.0,81711.0,0.565296]
[1742310542928,0.1943916,81712.0,81711.0,0.493496]
[1742310543115,0.0611925,81716.0,81715.0,0.1223863]
[1742310543116,0.122386,81716.0,81715.0,0.1223863]
[1742310543310,0.1333892,81721.0,81720.0,0.1223788]
[1742310543517,0.0722,81721.0,81720.0,0.1223788]
[1742310543816,0.0722,81721.0,81720.0,0.50597417]
[1742310544121,0.061178,81736.0,81735.0,0.1223548]
[1742310544313,0.1835355,81736.0,81735.0,0.1223548]
[1742310544513,0.1835355,81736.0,81735.0,0.05345567]
[1742310544827,0.061178,81736.0,81735.0,0.05345567]
[1742310545018,0.061178,81736.0,81735.0,0.12525567]
[1742310545523,0.133378,81736.0,81735.0,0.19375567]
[1742310545918,0.139378,81736.0,81735.0,0.19375567]
[1742310546519,0.1223578,81734.0,81733.0,0.0611796]
[1742310546819,0.1223668,81728.0,81727.0,0.00018357]
[1742310547023,0.1723668,81728.0,81727.0,0.12255187]
[1742310547221,0.1723668,81728.0,81727.0,0.00018357]
[1742310547425,0.1723668,81728.0,81710.0,0.47614273]
[1742310547426,0.1223758,81722.0,81721.0,0.00064]
[1742310547628,0.1835867,81714.0,81713.0,0.1835727]
[1742310547833,0.1468,81721.0,81711.0,0.1432]
[1742310548126,0.2691789,81721.0,81720.0,0.1223788]
[1742310548925,0.2609887,81721.0,81716.0,0.0611922]
[1742310549130,0.1223833,81717.0,81716.0,0.0611922]
[1742310549323,0.2223833,81717.0,81716.0,0.0611922]
[1742310549634,0.2967833,81717.0,81716.0,0.0611922]
[1742310550023,0.1223878,81714.0,81713.0,0.09311873]
[1742310550223,0.1223878,81714.0,81713.0,0.02281873]
[1742310550532,0.2497878,81714.0,81713.0,0.1223893]
[1742310550733,0.1541893,81713.0,81712.0,0.02305184]
[1742310550935,0.2723893,81713.0,81712.0,0.00018357]
[1742310551125,0.1224013,81705.0,81704.0,0.88932]
[1742310551337,0.3532013,81705.0,81704.0,0.88932]
[1742310551522,0.2954013,81705.0,81704.0,0.1224028]
[1742310551719,0.4276013,81705.0,81704.0,0.1224028]
[1742310552736,0.5001013,81705.0,81704.0,0.1224028]
[1742310553237,0.5001013,81705.0,81704.0,0.1946028]
[1742310553434,0.2777,81705.0,81704.0,0.1946028]
[1742310553634,0.1469,81705.0,81704.0,0.3363028]
[1742310554429,0.0725,81705.0,81704.0,0.6971028]
[1742310554631,0.0705,81705.0,81704.0,0.6971028]
[1742310555031,0.0752,81710.0,81709.0,0.1223953]
[1742310555429,0.1975938,81710.0,81709.0,0.2675953]
[1742310555629,0.0728,81712.0,81711.0,0.1223923]
[1742310555829,0.0728,81712.0,81711.0,0.4831923]
[1742310556035,0.0728,81712.0,81711.0,0.6283923]
[1742310556225,0.2447464,81728.0,81727.0,0.1223683]
[1742310556434,0.3175464,81728.0,81727.0,0.1223683]
[1742310556735,0.4175464,81728.0,81727.0,0.1223683]
[1742310557543,0.4778464,81728.0,81727.0,0.1223683]
[1742310557728,0.4904464,81728.0,81727.0,0.1223683]
[1742310559032,0.4964464,81728.0,81727.0,0.1223683]
[1742310559937,0.4282464,81728.0,81727.0,0.1223683]
[1742310560137,0.4282464,81728.0,81727.0,0.14474268]
[1742310560338,0.4964464,81728.0,81727.0,0.14474268]
[1742310560537,0.2517,81728.0,81727.0,0.14474268]
[1742310560741,0.1517,81728.0,81727.0,0.14474268]
[1742310560938,0.1517,81728.0,81727.0,0.28894268]
[1742310561643,0.2740668,81728.0,81727.0,0.28894268]
[1742310562941,0.3740668,81728.0,81727.0,0.28894268]
[1742310563140,0.2740668,81728.0,81727.0,0.28894268]
[1742310563338,0.27417531,81728.0,81727.0,0.28894268]
[1742310564047,0.37417531,81728.0,81727.0,0.28894268]
[1742310564842,0.07890851,81728.0,81727.0,0.28894268]
[1742310565051,0.0766,81732.0,81728.0,0.0611829]
[1742310565348,0.0719,81731.0,81730.0,0.1835456]
[1742310565861,0.1,81741.0,81728.0,0.0736]
[1742310566052,0.4831358,81749.0,81748.0,0.1223369]
[1742310566234,0.5254358,81749.0,81748.0,0.1223369]
[1742310566553,0.5831358,81749.0,81748.0,0.1223369]
[1742310567139,0.6551358,81749.0,81748.0,0.1223369]
[1742310567354,0.7317358,81749.0,81748.0,0.1223369]
[1742310567649,0.1223444,81743.0,81742.0,0.1835158]
[1742310567850,0.1223444,81743.0,81742.0,0.0611725]
[1742310568042,0.3664444,81743.0,81742.0,0.0611725]
[1742310568847,0.1223474,81741.0,81740.0,0.00018357]
[1742310569043,0.1223474,81741.0,81740.0,0.12253247]
[1742310569236,0.2664474,81741.0,81740.0,0.12253247]
[1742310569435,0.2982474,81741.0,81740.0,0.00018357]
[1742310569647,0.3512474,81741.0,81740.0,0.00018357]
[1742310569953,0.7772474,81741.0,81740.0,3.001e-05]
[1742310570353,0.6772474,81741.0,81740.0,3.001e-05]
[1742310570549,0.5549,81741.0,81727.0,0.02224895]
[1742310570855,0.1835652,81723.0,81722.0,0.0611875]
[1742310571547,0.1835652,81723.0,81722.0,0.1835633]
[1742310571752,0.1835652,81723.0,81722.0,0.2064817]
[1742310571954,0.1462,81726.0,81724.0,0.0611863]
[1742310572154,0.2685707,81726.0,81725.0,0.1223713]
[1742310574546,0.1472,81726.0,81725.0,0.1223713]
[1742310574845,0.0774,81726.0,81725.0,0.1223713]
[1742310575242,0.1997698,81726.0,81725.0,0.1223713]
[1742310575644,0.001,81726.0,81725.0,0.1223713]
[1742310575847,0.0709,81738.0,81737.0,0.1223534]
[1742310576647,0.1932519,81738.0,81737.0,0.1223534]
[1742310576950,0.0709,81738.0,81737.0,0.1223534]
[1742310577552,0.143,81738.0,81737.0,0.1223534]
[1742310577956,0.0611727,81743.0,81742.0,0.1223459]
[1742310578349,0.2047727,81743.0,81742.0,0.1223459]
[1742310578748,0.1223474,81741.0,81740.0,0.0611744]
[1742310579253,0.2723474,81741.0,81740.0,0.0611744]
[1742310580656,0.2723474,81741.0,81738.0,0.1223517]
[1742310580657,0.1835271,81739.0,81738.0,0.1223517]
[1742310582256,0.1835271,81739.0,81737.0,0.0611758]
[1742310582460,0.1223638,81730.0,81729.0,0.12254717]
[1742310582648,0.4831638,81730.0,81729.0,0.12254717]
[1742310582851,0.3608,81730.0,81729.0,0.12254717]
[1742310583150,0.2223638,81730.0,81729.0,0.12254717]
[1742310583355,0.3041638,81730.0,81729.0,0.12254717]
[1742310583548,0.3040638,81730.0,81729.0,0.12254717]
[1742310583751,0.7329638,81730.0,81729.0,0.00018357]
[1742310583947,0.0611902,81720.0,81717.0,0.88916]
[1742310584254,0.1223818,81718.0,81717.0,0.88916]
[1742310584650,0.2721818,81718.0,81717.0,0.88916]
[1742310585149,0.2721818,81718.0,81717.0,1.03360994]
[1742310585957,0.1223938,81710.0,81702.0,0.1224043]
[1742310586161,0.1223938,81710.0,81699.0,0.950325]
[1742310586162,0.6639138,81710.0,81699.0,0.88912]
[1742310586359,0.8071138,81710.0,81707.0,0.1223972]
[1742310586547,0.8071138,81710.0,81707.0,0.14468068]
[1742310586859,0.8071138,81710.0,81709.0,0.12257887]
[1742310587057,0.68472,81710.0,81709.0,0.12257887]
[1742310587255,0.7571138,81710.0,81709.0,0.19417887]
[1742310587858,0.7571138,81710.0,81709.0,0.27197887]
[1742310588251,0.7571138,81710.0,81709.0,0.12257887]
[1742310588863,0.8071138,81710.0,81709.0,0.12257887]
[1742310589054,0.9071138,81710.0,81709.0,0.00018357]
[1742310589660,0.8389138,81710.0,81709.0,0.00018357]
[1742310590048,0.9071138,81710.0,81709.0,0.00018357]
[1742310590452,0.8389138,81710.0,81709.0,0.00018357]
[1742310590651,0.9071138,81710.0,81709.0,0.00018357]
[1742310590861,0.8492138,81710.0,81709.0,0.00018357]
[1742310591157,0.8492138,81710.0,81709.0,0.12257887]
[1742310592151,0.9071138,81710.0,81709.0,0.12257887]
[1742310592353,0.9071138,81710.0,81709.0,0.00018357]
[1742310593461,0.8389138,81710.0,81709.0,0.00018357]
[1742310593666,0.9571138,81710.0,81709.0,0.00018357]
[1742310594055,0.89789615,81710.0,81709.0,0.00018357]
[1742310594250,0.96609615,81710.0,81709.0,0.00018357]
[1742310594655,0.96609615,81710.0,81694.0,0.0756]
[1742310594656,0.1836237,81697.0,81694.0,0.0756]
[1742310594855,0.2836237,81697.0,81696.0,0.1224133]
[1742310595054,0.4143437,81697.0,81696.0,0.1224133]
[1742310595266,0.2336259,81696.0,81695.0,0.1433397]
[1742310595464,0.2336259,81696.0,81695.0,0.1224161]
[1742310595666,0.3336259,81696.0,81695.0,0.1224161]
[1742310595879,0.2757259,81696.0,81695.0,0.1224161]
[1742310596052,0.3336259,81696.0,81695.0,0.1949161]
[1742310596563,0.3336259,81696.0,81695.0,0.0725]
[1742310596861,0.1836348,81691.0,81690.0,0.1224233]
[1742310597066,0.2836348,81691.0,81690.0,0.1949233]
[1742310597468,0.2684348,81691.0,81690.0,0.0725]
[1742310597768,0.1224267,81688.0,81687.0,0.02096188]
[1742310597952,0.2849467,81688.0,81687.0,0.02096188]
[1742310598153,0.1224327,81684.0,81683.0,0.00064]
[1742310598362,0.1224507,81672.0,81671.0,0.1369252]
[1742310598870,0.1224487,81674.0,81673.0,0.1836723]
[1742310600362,0.12261977,81682.0,81681.0,0.1224372]
[1742310600761,0.00018357,81682.0,81681.0,0.1224372]